Cogmind - Beta 17 @@@ ROGUE MODE // 2026.08.21 @ 02:12:55 Player: Artackni Result: Destroyed by Gamma Bomb Trap Performance ------------- Evolutions (9) 4500 Regions Visited (11) 2200 Robots Destroyed (2) 10 Value Destroyed (16) 16 Prototype IDs (6) 120 Alien Tech Used (0) 0 Bonus (500) 500 TOTAL SCORE: 7346 Bonus ------- Entered DSFs 500 Cogmind --------- Core Integrity 0/1600 Matter 291/300 Energy 99/100 System Corruption 8% Temperature Cool (0) Movement Core (50) Location -1/Access Parts ------- > --- POWER (2) -------- (None) > --- PROPULSION (15) -- (None) > --- UTILITY (6) ------ Machine Analyzer Experimental Optical Array > --- WEAPON (2) ------- (None) > --- INVENTORY (5) ---- Heavy Hammer Peak State ------------ > --- POWER ------------ Light Ion Engine > --- PROPULSION ------- Experimental Gyrokinetic Inverter Impulse Thruster Impulse Thruster Impulse Thruster Array Impulse Thruster Array Impulse Thruster Array Impulse Thruster Array Impulse Thruster Array Experimental Q-thruster > --- UTILITY ---------- Machine Analyzer Experimental Optical Array Graphene Brace > --- WEAPON ----------- (None) > --- INVENTORY -------- Heavy Hammer [Rating: 133] Favorites ----------- Power Light Ion Engine Engine Light Ion Engine Propulsion Armored Huge Wheel Treads Improved Treads Leg Carbon-fiber Leg Wheel Armored Huge Wheel Hover Unit Experimental Gyrokinetic Inverter Flight Unit Impulse Thruster Array Utility Graphene Brace Device Graphene Brace Processor Improved Signal Interpreter Hackware Advanced Hacking Suite Weapon Assault Rifle Ballistic Gun Assault Rifle Impact Weapon Heavy Hammer Build | -11 -10 -9 -8 -7 -6 -5 -4 -3 -3 -2 -1 ------- Run | Yrd Mat Mat Mat Fac Fac Fac Fac Res DSF Res Acc Slots Evolved 18 | . . 2 2 2 2 2 2 2 . 2 2 Power 1 | . . . . . . . . . . 1 . Propulsion 13 | . . 2 1 2 1 2 1 2 . 1 1 Utility 4 | . . . 1 . 1 . 1 . . . 1 Weapon . | . . . . . . . . . . . . Parts Attached 45 | 4 1 . 1 7 2 3 3 . 12 9 3 Power 1 | . . . . . . . . . . 1 . Engine 1 | . . . . . . . . . . 1 . Core . | . . . . . . . . . . . . Reactor . | . . . . . . . . . . . . Propulsion 25 | 2 . . 1 3 . 3 1 . 10 4 1 Treads 6 | 2 . . . 2 . 2 . . . . . Leg 1 | . . . 1 . . . . . . . . Wheel 3 | . . . . 1 . 1 1 . . . . Hover 1 | . . . . . . . . . . 1 . Flight 14 | . . . . . . . . . 10 3 1 Utility 14 | . . . . 3 2 . 2 . 1 4 2 Device 5 | . . . . 1 1 . 1 . . 1 1 Storage . | . . . . . . . . . . . . Processor 6 | . . . . 1 1 . . . 1 3 . Hackware 3 | . . . . 1 . . 1 . . . 1 Protection . | . . . . . . . . . . . . Artifact . | . . . . . . . . . . . . Weapon 5 | 2 1 . . 1 . . . . 1 . . Energy Gun . | . . . . . . . . . . . . Energy Cannon . | . . . . . . . . . . . . Ballistic Gun 3 | 2 1 . . . . . . . . . . Ballistic Cannon . | . . . . . . . . . . . . Launcher . | . . . . . . . . . . . . Special Weapon . | . . . . . . . . . . . . Impact Weapon 2 | . . . . 1 . . . . 1 . . Slashing Weapon . | . . . . . . . . . . . . Piercing Weapon . | . . . . . . . . . . . . Special Melee Weapon . | . . . . . . . . . . . . Unidentified Prototypes 6 | . . . . . . . . . . 6 . Corrupted Parts 1 | . . . . . . . . . . 1 . System Corruption 7 | . . . . . . . . . . 7 . Parts Lost 30 | . . 1 3 . . 1 2 . 3 8 12 Power 1 | . . . . . . . . . . 1 . Propulsion 18 | . . 1 1 . . 1 . . 2 6 7 Utility 9 | . . . . . . . 2 . 1 1 5 Weapon 2 | . . . 2 . . . . . . . . Highest Loss Streak 8 | . . 1 3 . . 1 2 . 3 8 7 To Critical Strikes 1 | . . 1 . . . . . . . . . Average Backups 3 | . . 2 3 3 3 4 4 4 3 2 1 Power . | . . . . . . . . . . . . Propulsion . | . . . . . . . . . . 1 . Utility 1 | . . . . . . 1 1 2 1 . . Weapon 1 | . . 2 3 3 3 3 2 2 1 1 1 Tool/Special . | . . . . . . . . . . . . Unused Backups . | . . . . . . . . . . . . Power . | . . . . . . . . . . . . Propulsion . | . . . . . . . . . . . . Utility . | . . . . . . . . . . . . Weapon . | . . . . . . . . . . . . Tool/Special . | . . . . . . . . . . . . Average Slot Usage (%) 50 | . 57 44 31 38 53 47 61 52 51 48 33 Treads 16 | . 28 22 9 10 13 11 21 19 18 . . Wheel 10 | . . . . 5 6 6 13 14 13 . . Flight 2 | . . . . . . . . . . 29 13 Device 4 | . . . . 6 9 5 9 4 4 4 6 Processor 8 | . . . . 2 9 11 10 9 8 8 9 Hackware 3 | . . . . 4 6 5 5 4 3 . 1 Ballistic Gun 1 | . 28 22 18 . . . . . . . . Peak Build Rating 133 | 4 4 4 6 28 32 41 59 56 116 133 117 Average Rating 53 | 2 4 3 4 22 31 33 53 56 56 115 78 On Entrance 38 | . 4 4 3 3 28 32 41 56 56 114 117 Avg Prop Armor Cover (%) 32 | . 24 24 20 41 43 43 45 46 32 31 26 Naked Turns 2 | . . . . . . . . . 2 . . Heaviest Build 7 | 3 4 4 4 4 2 1 2 1 5 7 3 Greatest Support 64 | 40 40 3 3 3 3 3 3 3 64 17 6 Greatest Overweight (x) 1 | . 1 1 1 1 . . . . 1 1 . Average Overweight (x) . | . . 1 . . . . . . . . . Largest Inventory Capacity 5 | 5 5 5 5 5 5 5 5 5 5 5 5 Average Capacity 5 | 5 5 5 5 5 5 5 5 5 5 5 5 Most Carried 5 | 2 1 3 3 4 4 4 5 4 5 5 1 Average Carried 3 | . . 2 3 3 3 4 4 4 4 2 1 Final Capacity 5 | 5 5 5 5 5 5 5 5 5 5 5 5 Final Carried 5 | . 1 3 3 4 4 4 4 4 5 1 1 Class Distribution -------------------- 83% | Mutant 8% | Sprinter 7% | Scout Dominant Class ---------------- Mutant | -10/Materials Mutant | -9/Materials Mutant | -8/Materials Mutant | -7/Factory Scout | -6/Factory Scout | -5/Factory Scout | -4/Factory Scout | -3/Research Mutant | -3/DSF Sprinter | -2/Research Sprinter | -1/Access Resources | -11 -10 -9 -8 -7 -6 -5 -4 -3 -3 -2 -1 ----------- Run | Yrd Mat Mat Mat Fac Fac Fac Fac Res DSF Res Acc Matter Collected 547 | 235 17 . . . . 85 . . 8 30 172 Remotely . | . . . . . . . . . . . . Salvage Created 36 | . 17 . . . . 19 . . . . . Parts 7 | . 3 . . . . 4 . . . . . Haulers Intercepted . | . . . . . . . . . . . . Recyclers Shooed . | . . . . . . . . . . . . Parts Field Recycled . | . . . . . . . . . . . . Retrieved Matter . | . . . . . . . . . . . . Parts Self-Destructed . | . . . . . . . . . . . . Prevented . | . . . . . . . . . . . . Parts Restored . | . . . . . . . . . . . . Kills | -11 -10 -9 -8 -7 -6 -5 -4 -3 -3 -2 -1 ------- Run | Yrd Mat Mat Mat Fac Fac Fac Fac Res DSF Res Acc Combat Hostiles Destroyed . | . . . . . . . . . . . . Classes Destroyed 2 | . 1 . . . . 1 . . . . . Worker 1 | . 1 . . . . . . . . . . Builder 1 | . . . . . . 1 . . . . . Best Kill Streak 1 | . 1 . . . . 1 . . . . . Combat Bots Only . | . . . . . . . . . . . . Max Kills in Single Turn 1 | . 1 . . . . 1 . . . . . Gunslinging . | . . . . . . . . . . . . Exploded . | . . . . . . . . . . . . Melee . | . . . . . . . . . . . . Uniques/NPCs Destroyed . | . . . . . . . . . . . . Combat | -11 -10 -9 -8 -7 -6 -5 -4 -3 -3 -2 -1 -------- Run | Yrd Mat Mat Mat Fac Fac Fac Fac Res DSF Res Acc Hostile Shots Fired 500 | . . 80 14 6 9 77 24 . 33 46 211 Missed 229 | . . 25 2 2 3 29 13 . 9 28 118 Hits 271 | . . 55 12 4 6 48 11 . 24 18 93 Melee 6 | . . . . . . . . . 6 . . Projectile 265 | . . 55 12 4 6 48 11 . 18 18 93 AOE 2 | . . . . . . . . . 1 . 1 Critical Strikes 14 | . . 1 . 1 . 2 1 . 2 2 5 Actively Blocked 10 | . . . . . . . 1 . 2 2 5 Damage Taken 5659 | . . 480 192 59 37 783 174 . 854 598 2482 Core 2130 | . . 100 64 . . 128 . . 151 69 1618 Absorbed by Shields 32 | . . . . . . . . . 32 . . Core Remaining (%) 93 | 100 100 75 88 100 100 87 100 . 88 95 . Volleys Fired 5 | . 5 . . . . . . . . . . Largest 2 | . 2 . . . . . . . . . . Hottest 40 | . 40 . . . . . . . . . . Shots Fired 10 | . 10 . . . . . . . . . . Gun 10 | . 10 . . . . . . . . . . Cannon . | . . . . . . . . . . . . Launcher . | . . . . . . . . . . . . Special . | . . . . . . . . . . . . Kinetic 10 | . 10 . . . . . . . . . . Thermal . | . . . . . . . . . . . . Explosive . | . . . . . . . . . . . . Electromagnetic . | . . . . . . . . . . . . Robot Hit Streak 3 | . 3 . . . . . . . . . . Robot Miss Streak 4 | . 4 . . . . . . . . . . Penetration Max . | . . . . . . . . . . . . Secondary Targets . | . . . . . . . . . . . . Shots Hit Robots 4 | . 4 . . . . . . . . . . Core Hits 2 | . 1 . . . . 1 . . . . . Critical Kills . | . . . . . . . . . . . . Critical Parts Destroyed 1 | . 1 . . . . . . . . . . Critical Strikes 1 | . 1 . . . . . . . . . . Destroy 1 | . 1 . . . . . . . . . . Melee Attacks 2 | . . . . 1 . . . . 1 . . Impact 2 | . . . . 1 . . . . 1 . . Slashing . | . . . . . . . . . . . . Piercing . | . . . . . . . . . . . . Sneak Attacks . | . . . . . . . . . . . . Combat Hostiles . | . . . . . . . . . . . . Follow-up Attacks . | . . . . . . . . . . . . Damage Inflicted 72 | . 47 6 . . . 15 . . . . 4 Guns 47 | . 47 . . . . . . . . . . Cannons . | . . . . . . . . . . . . Explosions . | . . . . . . . . . . . . Melee . | . . . . . . . . . . . . Ramming 25 | . . 6 . . . 15 . . . . 4 Kinetic 47 | . 47 . . . . . . . . . . Thermal . | . . . . . . . . . . . . Explosive . | . . . . . . . . . . . . Electromagnetic . | . . . . . . . . . . . . Impact . | . . . . . . . . . . . . Slashing . | . . . . . . . . . . . . Piercing . | . . . . . . . . . . . . Highest Corruption 10 | . . . . 1 . . . . . 10 7 Average Corruption 5 | . . . . 1 . . . . . 7 3 Corruption Purged . | . . . . . . . . . . . . Corruption Blocked . | . . . . . . . . . . . . Effects 5 | . . . . . . . . . . 3 2 Matter Fused 1 | . . . . . . . . . . 1 . Heat Flow Errors 1 | . . . . . . . . . . 1 . Parts Rejected 1 | . . . . . . . . . . 1 . Data Loss (minor) 2 | . . . . . . . . . . . 2 Overload Shots . | . . . . . . . . . . . . Overflow Damage . | . . . . . . . . . . . . Projectiles . | . . . . . . . . . . . . Explosions . | . . . . . . . . . . . . Melee . | . . . . . . . . . . . . Knockbacks . | . . . . . . . . . . . . Impact . | . . . . . . . . . . . . Kinetic . | . . . . . . . . . . . . Secondary . | . . . . . . . . . . . . Self-Inflicted Damage 10 | . . 2 . . . 6 . . . . 2 Shots . | . . . . . . . . . . . . Rammed 10 | . . 2 . . . 3 . . . . 5 Targets Rammed 10 | . . 2 . . . 3 . . . . 5 Kicked . | . . . . . . . . . . . . Crushed . | . . . . . . . . . . . . Highest Temperature 96 | . . . . . . . . . . 96 . Average Temperature 59 | . . . . . . . . . . 59 . Received Heat Transfer 435 | . . 60 108 . 6 87 . . 63 18 93 Siege Activations . | . . . . . . . . . . . . Martial Activations . | . . . . . . . . . . . . Shielding Activations . | . . . . . . . . . . . . Robots Disrupted . | . . . . . . . . . . . . Combat Hostiles . | . . . . . . . . . . . . Robots Corrupted . | . . . . . . . . . . . . Combat Hostiles . | . . . . . . . . . . . . Parts Fried . | . . . . . . . . . . . . Impact Corruptions . | . . . . . . . . . . . . Robots Melted . | . . . . . . . . . . . . Combat Hostiles . | . . . . . . . . . . . . Parts Melted . | . . . . . . . . . . . . Heat Transferred . | . . . . . . . . . . . . Parts Sabotaged . | . . . . . . . . . . . . Parts Stolen . | . . . . . . . . . . . . Parts Stripped . | . . . . . . . . . . . . Power Chain Reactions . | . . . . . . . . . . . . Alert | -11 -10 -9 -8 -7 -6 -5 -4 -3 -3 -2 -1 ------- Run | Yrd Mat Mat Mat Fac Fac Fac Fac Res DSF Res Acc Maximum Alert Level 2 | . . . . . . . . . . 1 2 Low Security (%) 95 | 100 100 100 100 100 100 100 100 100 100 84 35 Level 1 . | . . . . . . . . . . 15 6 Level 2 3 | . . . . . . . . . . . 58 Level 3 . | . . . . . . . . . . . . Level 4 . | . . . . . . . . . . . . Level 5 . | . . . . . . . . . . . . High Security . | . . . . . . . . . . . . Max Security . | . . . . . . . . . . . . Peak Influence 679 | . 5 . . 15 . 35 20 5 3 250 679 Initial 149 | . . . . . . . 9 5 3 . 149 Average 29 | . . . . 2 . 7 2 5 2 93 381 Influence Increases 1271 | . 6 . . 15 . 50 45 . . 345 810 Destroy 0b10 Robot/NC 10 | . 5 . . . . 5 . . . . . Disable Machine 15 | . . . . 15 . . . . . . . Destroy Structure 1 | . 1 . . . . . . . . . . Partial Spotted 120 | . . . . . . . 15 . . 15 90 Lose Combat Pursuer 1125 | . . . . . . 45 30 . . 330 720 Influence Decreases 592 | . 6 . . 15 . 30 55 5 5 95 381 Entered New Map 119 | . . . . . . . 11 5 2 . 101 Time Decay 260 | . 6 . . 15 . 20 29 . . 30 160 Lost Part 213 | . . . . . . 10 15 . 3 65 120 Squads Dispatched 10 | . . 2 . . . 1 1 . 1 2 3 Investigation 1 | . . 1 . . . . . . . . . Extermination 5 | . . . . . . . 1 . . 2 2 Reinforcement 4 | . . 1 . . . 1 . . 1 . 1 Assault . | . . . . . . . . . . . . Garrison . | . . . . . . . . . . . . Intercept . | . . . . . . . . . . . . Searches Triggered . | . . . . . . . . . . . . Construction Impeded 1 | . . . . . . 1 . . . . . Haulers Reinforced . | . . . . . . . . . . . . Active Scanning Responses . | . . . . . . . . . . . . Cargo Convoy Interrupts . | . . . . . . . . . . . . Stealth | -11 -10 -9 -8 -7 -6 -5 -4 -3 -3 -2 -1 --------- Run | Yrd Mat Mat Mat Fac Fac Fac Fac Res DSF Res Acc Distress Signals 10 | . . . 1 . . 2 1 . . 2 4 Communications Jammed . | . . . . . . . . . . . . Distress Signals . | . . . . . . . . . . . . Times Spotted 174 | . . 10 7 1 1 19 11 . 5 38 82 Peak Tracking Total 27 | . . 10 6 1 1 15 8 . 5 14 27 Tactical Retreats 19 | . . . . . . 2 1 . . 5 11 ECM-based Alert Blocks 4 | . . . . . . . . . . . 4 Traps | -11 -10 -9 -8 -7 -6 -5 -4 -3 -3 -2 -1 ------- Run | Yrd Mat Mat Mat Fac Fac Fac Fac Res DSF Res Acc Traps Triggered 6 | . . 1 . . . 1 . . 1 2 1 Indirectly . | . . . . . . . . . . . . Trap Hack Attempts . | . . . . . . . . . . . . Triggered . | . . . . . . . . . . . . Disarmed . | . . . . . . . . . . . . Reprogrammed . | . . . . . . . . . . . . Reused . | . . . . . . . . . . . . Traps Extracted . | . . . . . . . . . . . . Installed . | . . . . . . . . . . . . Triggered . | . . . . . . . . . . . . Machines | -11 -10 -9 -8 -7 -6 -5 -4 -3 -3 -2 -1 ---------- Run | Yrd Mat Mat Mat Fac Fac Fac Fac Res DSF Res Acc Machines Disabled 1 | . . . . 1 . . . . . . . Max in Single Turn 1 | . . . . 1 . . . . . . . Energy Cycler 1 | . . . . . . . . . . . 1 Machines Repaired . | . . . . . . . . . . . . Machines Dismantled . | . . . . . . . . . . . . Machines Sabotaged . | . . . . . . . . . . . . Overloaded Fab Kills . | . . . . . . . . . . . . Hacking | -11 -10 -9 -8 -7 -6 -5 -4 -3 -3 -2 -1 --------- Run | Yrd Mat Mat Mat Fac Fac Fac Fac Res DSF Res Acc Machines Accessed 1 | . . . . . . . . 1 . . . Terminals 1 | . . . . . . . . 1 . . . Fabricators . | . . . . . . . . . . . . Repair Stations . | . . . . . . . . . . . . Recycling Units . | . . . . . . . . . . . . Scanalyzers . | . . . . . . . . . . . . Garrison Access . | . . . . . . . . . . . . Total Hacks 1 | . . . . . . . . 1 . . . Successful 1 | . . . . . . . . 1 . . . Failed . | . . . . . . . . . . . . Catastrophic . | . . . . . . . . . . . . Database Lockouts . | . . . . . . . . . . . . Manual . | . . . . . . . . . . . . Terminals 1 | . . . . . . . . 1 . . . Fabricators . | . . . . . . . . . . . . Repair Stations . | . . . . . . . . . . . . Recycling Units . | . . . . . . . . . . . . Scanalyzers . | . . . . . . . . . . . . Garrison Access . | . . . . . . . . . . . . Terminal Hacks 1 | . . . . . . . . 1 . . . Open DSF 1 | . . . . . . . . 1 . . . Fabricator Hacks . | . . . . . . . . . . . . Repair Station Hacks . | . . . . . . . . . . . . Recycling Unit Hacks . | . . . . . . . . . . . . Scanalyzer . | . . . . . . . . . . . . Garrison Access Hacks . | . . . . . . . . . . . . Unauthorized Hacks . | . . . . . . . . . . . . Terminals . | . . . . . . . . . . . . Fabricators . | . . . . . . . . . . . . Repair Stations . | . . . . . . . . . . . . Recycling Units . | . . . . . . . . . . . . Scanalyzers . | . . . . . . . . . . . . Garrison Access . | . . . . . . . . . . . . Data Cores Recovered . | . . . . . . . . . . . . Used . | . . . . . . . . . . . . Hacking Detections . | . . . . . . . . . . . . Full Trace Events . | . . . . . . . . . . . . Feedback Events . | . . . . . . . . . . . . Feedback Blocked . | . . . . . . . . . . . . Robot Schematics Acquired . | . . . . . . . . . . . . Robots Built . | . . . . . . . . . . . . Authchips . | . . . . . . . . . . . . Time . | . . . . . . . . . . . . Total Robot Build Rating . | . . . . . . . . . . . . Part Schematics Acquired . | . . . . . . . . . . . . Parts Built . | . . . . . . . . . . . . Authchips . | . . . . . . . . . . . . Time . | . . . . . . . . . . . . Total Part Build Rating . | . . . . . . . . . . . . Part Studies Acquired . | . . . . . . . . . . . . Parts Repaired . | . . . . . . . . . . . . Time . | . . . . . . . . . . . . Parts Recycled . | . . . . . . . . . . . . Recycled Matter . | . . . . . . . . . . . . Retrieved Matter . | . . . . . . . . . . . . Retrieved Components . | . . . . . . . . . . . . Parts Scanalyzed . | . . . . . . . . . . . . Part Schematics Acquired . | . . . . . . . . . . . . Parts Damaged . | . . . . . . . . . . . . Bothacking | -11 -10 -9 -8 -7 -6 -5 -4 -3 -3 -2 -1 ------------ Run | Yrd Mat Mat Mat Fac Fac Fac Fac Res DSF Res Acc Used RIF Installer . | . . . . . . . . . . . . Robots Hacked . | . . . . . . . . . . . . Non-combat . | . . . . . . . . . . . . Combat . | . . . . . . . . . . . . Robot Hacks Applied . | . . . . . . . . . . . . Relay Couplers Released . | . . . . . . . . . . . . Fabnet Peak Effective % . | . . . . . . . . . . . . Robots Rewired . | . . . . . . . . . . . . Allies Hacked . | . . . . . . . . . . . . Hacks Repelled . | . . . . . . . . . . . . Allies | -11 -10 -9 -8 -7 -6 -5 -4 -3 -3 -2 -1 -------- Run | Yrd Mat Mat Mat Fac Fac Fac Fac Res DSF Res Acc Total Allies . | . . . . . . . . . . . . Largest Group . | . . . . . . . . . . . . Highest-Rated Group . | . . . . . . . . . . . . Highest-Rated Ally . | . . . . . . . . . . . . Total Orders . | . . . . . . . . . . . . Ally Attacks . | . . . . . . . . . . . . Total Damage . | . . . . . . . . . . . . Kills . | . . . . . . . . . . . . Allies Corrupted . | . . . . . . . . . . . . Allies Melted . | . . . . . . . . . . . . Intel | -11 -10 -9 -8 -7 -6 -5 -4 -3 -3 -2 -1 ------- Run | Yrd Mat Mat Mat Fac Fac Fac Fac Res DSF Res Acc Active Infowar (turns) 4589 | . . . . 1 82 135 188 10 3709 139 325 Optics 4434 | . . . . . 51 135 188 10 3625 100 325 Sensors 404 | . . . . . 82 135 187 . . . . Machine Analysis 548 | . . . . . . . . . 84 139 325 Jamming 3 | . . . . 1 . . . . 1 1 . ECM 4 | . . . . . . . . . . . 4 Robot Analysis Total . | . . . . . . . . . . . . Derelict Logs Recovered . | . . . . . . . . . . . . Drone Launches . | . . . . . . . . . . . . Drone Recoveries . | . . . . . . . . . . . . Exploration | -11 -10 -9 -8 -7 -6 -5 -4 -3 -3 -2 -1 ------------- Run | Yrd Mat Mat Mat Fac Fac Fac Fac Res DSF Res Acc Turns Passed 5111 | 57 172 83 75 133 82 135 188 10 3712 139 325 Spaces Moved 3366 | 50 114 80 77 236 119 255 358 20 87 576 1394 Core 1331 | 26 44 80 77 236 119 255 358 20 38 4 74 Treads 94 | 24 70 . . . . . . . . . . Legs . | . . . . . . . . . . . . Wheels . | . . . . . . . . . . . . Hover . | . . . . . . . . . . . . Flight 1941 | . . . . . . . . . 49 572 1320 Fastest Speed 20 | 50 100 100 50 50 50 50 50 50 32 20 20 Average Speed 39 | 102 136 100 95 50 50 50 50 50 56 21 21 Slowest Speed 160 | 160 160 100 100 100 50 50 50 50 100 100 50 Overloaded Moves . | . . . . . . . . . . . . Propulsion Burnouts . | . . . . . . . . . . . . Robots Hopped 60 | . . . . . . . . . . 9 51 Potential Cave-ins . | . . . . . . . . . . . . Cave-ins Triggered . | . . . . . . . . . . . . Exploration Rate (%) 21 | 3 26 17 21 5 5 14 15 2 88 26 34 Regions Visited 11 Branch Regions . Pre-discovered Areas . | . . . . . . . . . . . . Known Exits Taken 6 | . . . . 1 1 1 1 1 . 1 . Unknown Exits Taken 4 | 1 1 1 1 . . . . . . . . Scrap Searched . | . . . . . . . . . . . . Spaces Dug . | . . . . . . . . . . . . Terrain Destroyed . | . . . . . . . . . . . . Melee . | . . . . . . . . . . . . Projectile . | . . . . . . . . . . . . AOE . | . . . . . . . . . . . . Terrain Rammed . | . . . . . . . . . . . . Walls Destroyed . | . . . . . . . . . . . . Machines Disabled . | . . . . . . . . . . . . Actions | -11 -10 -9 -8 -7 -6 -5 -4 -3 -3 -2 -1 --------- Run | Yrd Mat Mat Mat Fac Fac Fac Fac Res DSF Res Acc Total 7048 | 55 119 83 77 245 140 260 365 19 3741 579 1365 Wait 3669 | . . . . . 19 . 2 . 3634 . 14 Move 3247 | 49 113 79 76 235 118 254 357 19 86 558 1303 Hop 48 | . . . . . . . . . . 8 40 Pick Up 9 | 2 . 2 . 1 . . 2 . 2 . . Fast Attach 38 | 2 . . 1 6 1 3 2 . 11 9 3 Attach 10 | 2 . . . 1 1 . 1 . 3 2 . Detach 3 | . . . . 1 1 . . . . 1 . Swap 1 | . 1 . . . . . . . . . . Drop 2 | . . . . . . . 1 . . 1 . Fire 5 | . 5 . . . . . . . . . . Melee 2 | . . . . 1 . . . . 1 . . Ram 10 | . . 2 . . . 3 . . . . 5 Kick . | . . . . . . . . . . . . Crush . | . . . . . . . . . . . . Escape Stasis 4 | . . . . . . . . . 4 . . Rewire . | . . . . . . . . . . . . Trap . | . . . . . . . . . . . . Miscellaneous . | . . . . . . . . . . . . Route ------- -11/Scrapyard -10/Materials -9/Materials -8/Materials -7/Factory (discovered 2 exits: *Fac / *Low) -6/Factory -5/Factory -4/Factory (discovered 2 exits: *Res / *Upp) -3/Research -3/DSF -2/Research -1/Access History --------- Turn | Location | Event 10 | -11/Scrapyard | Discovered new exit (range 13) 58 | -11/Scrapyard | Entered Materials 224 | -10/Materials | Discovered new exit (range 7) 230 | -10/Materials | Entered another Materials area 230 | -9/Materials | Evolved 2 slots: Propulsion x2 306 | -9/Materials | Discovered new exit (range 6) 308 | -9/Materials | Build established: Mutant 313 | -9/Materials | Entered another Materials area 313 | -8/Materials | Evolved 2 slots: Propulsion x1, Utility x1 386 | -8/Materials | Discovered new exit (range 5) 388 | -8/Materials | Entered Factory 388 | -7/Factory | Evolved 2 slots: Propulsion x2 416 | -7/Factory | Discovered new exit (range 12) 417 | -7/Factory | Lost 3 parts (1n2w) 489 | -7/Factory | Identified exit to Lower Caves 518 | -7/Factory | Discovered new exit (range 5) 520 | -7/Factory | Identified exit to Factory 521 | -7/Factory | Entered another Factory area 521 | -6/Factory | Evolved 2 slots: Propulsion x1, Utility x1 556 | -6/Factory | Discovered new exit (range 14) 602 | -6/Factory | Identified exit to Factory 603 | -6/Factory | Entered another Factory area 603 | -5/Factory | Evolved 2 slots: Propulsion x2 725 | -5/Factory | Discovered new exit (range 15) 733 | -5/Factory | Identified exit to Factory 738 | -5/Factory | Entered another Factory area 738 | -4/Factory | Evolved 2 slots: Propulsion x1, Utility x1 856 | -4/Factory | Build established: Scout 868 | -4/Factory | Discovered new exit (range 20) 890 | -4/Factory | Identified exit to Upper Caves 922 | -4/Factory | Discovered new exit (range 9) 925 | -4/Factory | Identified exit to Research 926 | -4/Factory | Entered Research 926 | -3/Research | Evolved 2 slots: Propulsion x2 936 | -3/Research | Identified exit to DSF 936 | -3/Research | Entered DSF 1224 | -3/DSF | Build established: Mutant 4561 | -3/DSF | Released all parts (11) 4584 | -3/DSF | Additional patrols routed to DSF 4644 | -3/DSF | Discovered new exit (range 14) 4648 | -3/DSF | Entered Research 4648 | -2/Research | Evolved 2 slots: Power x1, Propulsion x1 4659 | -2/Research | Lost 3 parts (2n1u) 4752 | -2/Research | Found Prototype Processor 4752 | -2/Research | Identified Exp. Core Analyzer 4757 | -2/Research | Found Prototype Device 4757 | -2/Research | Identified Exp. Transmission Jammer 4765 | -2/Research | Spotted B-90 Cyclops 4783 | -2/Research | Lost 8 parts (1p6n1u) 4784 | -2/Research | System corruption reached 10% 4784 | -2/Research | Discovered new exit (range 17) 4787 | -2/Research | Identified exit to Access 4787 | -2/Research | Entered Access 4787 | -1/Access | Evolved 2 slots: Propulsion x1, Utility x1 4824 | -1/Access | Energy Cycler disabled 4908 | -1/Access | Lost 3 parts (1n2u) 4965 | -1/Access | Build established: Sprinter 5075 | -1/Access | Core integrity fell below 50% 5098 | -1/Access | Core integrity fell below 20% 5112 | -1/Access | Destroyed by Gamma Bomb Trap Last Messages --------------- 05081_ Slammed into R-10 Processor. 05082_ K-01 Serf suffers critical hit (Destroy). 05083_ K-01 Serf cleans the Anti-Orbital Battery. 05084_ Slug penetrates S-43 Plague. 05084_ S-43 Plague suffers critical hit (Destroy). 05086_ K-01 Serf cleans the Anti-Orbital Battery. 05092_ ECM Suite destroyed. 05092_ K-01 Serf cleans the Anti-Orbital Battery. 05095_ P-80 Master resets R-10 Processor, system corruption cleaned. 05096_ K-01 Serf cleans the Anti-Orbital Battery. 05098_ Anti-Orbital Battery disabled. 05100_ System corrupted: Component data lost. 05102_ >> Machine Analyzer network decryption results: 05102_ Terminal x2 05108_ S-43 Plague misfires. 05108_ P-80 Master resets S-43 Plague, system corruption cleaned. 05112_ Triggered Gamma Bomb Trap. 05112_ A bubble of electromagnetic force engulfs the area. 05112_ Gamma Bomb Trap short circuited. 05112_ A bubble of electromagnetic force engulfs the area. Map ----- +----------------------------------------------------+ | | | ?????????????????????????????????????????????????? | | ?????????????????????????????????????????????????? | | ?????????????????????????????????????????????????? | | ???????????????""""??????????????????????????????? | | ???????????????""R""?????????????????????????????? | | ???????????????""?""?????????????????????????????? | | ?????????????????????????????????????????????????? | | ?????????????????????????????????????????????????? | | ?????????????????????????????????????????????????? | | ??????????????###?????????########+###???????????? | | ??????????????# ???????? #???????????? | | ??????????????# ??????? t #???????????? | | ??????????????# ???? +???????????? | | ??????????????# #???????????? | | ??????????????# """"" #???????????? | | ??????????????# """"" #???????????? | | ??????????????# """"" !!=#???????????? | | ??????????????# """"" !!=#???????????? | | ??????????????# """"" !==#???????????? | | ??????????????# ?????????????? | | ??????????????# ???????????????? | | ??????????????# m ?????????????????? | | ????????????????? ???????????????????? | | ????????????????????# ?????????????????????? | | ???????????#####????# @#??########????????????? | | ???????????# ???# #? #????????????? | | ???????????# ??# #? #????????????? | | ???????????# ?# # " #????????????? | | ???????????# # # """ #????????????? | | ???????????# [!! ; + """#????????????? | | ???????????# [!! # # " #????????????? | | ???????????# !!! # # ! +????????????? | | ???????????#! ?# #? #????????????? | | ???????????# ??# #?#########?## ##??????? | | ???????????######???# #??######## #??????? | | ????????????????????# ### T" #??????? | | ????????????????????# "" #??????? | | ????????????????????# #??????? | | ????????????????????# #### #??????? | | ????????????????????# #???????????????? | | ????????????????????# #???????????????? | | ????????????????????# #???????????????? | | ????????????????????# ss"" #???????????????? | | ????????????????????# s "" #???????????????? | | ????????????????????#ss """" #???????????????? | | ????????????????????# """" #???????????????? | | ?????????????######## """" #???????????????? | | ?????????????# """" ############ ??? | | ?????????????# """" ??? | +----------------------------------------------------+ Best States ------------- Heat Dissipation 52 Energy Generation 10 Energy Capacity 125 Matter Stores 295 Matter Capacity 300 Sight Range 23 Robot Scan Range 15 Terrain Scan Density 10 Corruption Containment 20 Evasion (%) 66 Recoil Reduction 2 Offensive Hacking 14 Defensive Hacking 14 Item Schematics ----------------- None Robot Schematics ------------------ None Fabricated ------------ Nothing Repaired ---------- Nothing Studied --------- None Alien Tech Used ----------------- None Achievements -------------- None Challenges ------------ None Game ------ Seed SpreadBladeTether Manual? 0 Play Time 00:33:35 Cumulative 305.5 hours Start 2026.08.21 @ 01:35:38 End 2026.08.21 @ 02:12:55 Sessions 2 Manual Loads 0 Difficulty Rogue Special Mode None Game No. 147 Rogue 147 Adventurer 0 Explorer 0 Win Type - Total 18 Types 14/1/1/1/0/0/0/0/0/1 Lore% 80 Gallery% 75 Achievement% 73 Wizard Run 0 Options --------- Layout 0 ASCII 0 Keyboard 1 Movement Arrows Keybinds 0 Fullscreen 2 Font 18/SmallcapsGlow Map View 76x50 Zoom Use 0% Tactical HUD 1 Map Filters NONE Filters NONE Steam 1 RUN: c7c3f617-5b41-4c14-9614-dcaf1217b4de